fUST/lending_fUST_20240914
["ID","MTS","AMOUNT","RATE_DAILY","PERIOD"]
[338138019,1726293524576,500.0,0.00028,120]
[338138020,1726293532197,500.0,0.00028,120]
[338138021,1726293533727,500.0,0.00028,120]
[338138022,1726293546558,500.0,0.00028,120]
[338138023,1726293553077,617.71,0.00028,120]
[338138024,1726293554156,500.0,0.00028,120]
[338138025,1726293558833,500.0,0.00028,120]
[338138026,1726293568443,500.0,0.00028,120]
[338138027,1726293580781,500.0,0.00028,120]
[338138028,1726293585840,500.0,0.00028,120]
[338138029,1726293588988,521.30724756,0.00028,120]
[338138030,1726293590874,500.0,0.00028,120]
[338138031,1726293596016,230.44,0.00028,120]
[338138033,1726293620444,500.0,0.00028,120]
[338138034,1726293629956,500.0,0.00028,120]
[338138035,1726293635139,500.0,0.00028,120]
[338138036,1726293642260,532.12,0.00028,120]
[338138037,1726293654862,500.0,0.00028,120]
[338138039,1726293663512,500.0,0.00028,120]
[338138041,1726293668962,878.53,0.00028,120]
[338138042,1726293669865,500.0,0.00028,120]
[338138043,1726293672797,500.0,0.00028,120]
[338138044,1726293674398,500.0,0.00028,120]
[338138045,1726293677444,3066.24,0.00028,120]
[338138046,1726293682226,500.0,0.00028,120]
[338138047,1726293685552,500.0,0.00028,120]
[338138048,1726293694390,500.0,0.00028,120]
[338138049,1726293697179,502.21503495,0.00028,120]
[338138050,1726293701218,502.15972482,0.00028,120]
[338138053,1726293703077,167.72517519,0.00028,120]
[338138054,1726293706850,500.0,0.00028,120]
[338138055,1726293712947,941.49,0.00028,120]
[338138058,1726293755900,500.9321221,0.00028,120]
[338138059,1726293762070,500.0,0.00028,120]
[338138060,1726293769508,500.0,0.00028,120]
[338138061,1726293777119,500.0,0.00028,120]
[338138062,1726293781227,10000.0,0.00028,120]
[338138063,1726293784380,500.0,0.00028,120]
[338138064,1726293797529,500.0,0.00028,120]
[338138065,1726293797590,2557.85,0.00028,120]
[338138066,1726293799306,500.0,0.00028,120]
[338138069,1726293833453,500.0,0.00028,120]
[338138070,1726293844072,500.0,0.00028,120]
[338138071,1726293848553,500.0,0.00028,120]
[338138073,1726293861042,503.28161975,0.00028,120]
[338138074,1726293862936,500.0,0.00028,120]
[338138075,1726293864366,470.29456581,0.00028,120]
[338138076,1726293865424,505.25925374,0.00028,120]
[338138077,1726293869107,509.95,0.00028,120]
[338138078,1726293869455,500.0,0.00028,120]
[338138079,1726293872716,500.0,0.00028,120]
[338138080,1726293888920,239.33,0.00028,120]
[338138081,1726293891618,419.23915899,0.00028,120]
[338138083,1726293905370,2938.48,0.00028,120]
[338138084,1726293907010,500.0,0.00028,120]
[338138085,1726293911196,500.0,0.00028,120]
[338138086,1726293913938,500.0,0.00028,120]
[338138087,1726293918487,500.0,0.00028,120]
[338138088,1726293926606,841.92,0.00028,120]
[338138089,1726293938890,902.26,0.00028,120]
[338138090,1726293942327,500.0,0.00028,120]
[338138091,1726293979551,500.0,0.00028,120]
[338138092,1726293983253,500.0,0.00028,120]
[338138093,1726293995849,500.0,0.00028,120]
[338138094,1726293997502,500.0,0.00028,120]
[338138095,1726294010536,500.0,0.00028,120]
[338138096,1726294015452,500.0,0.00028,120]
[338138097,1726294017365,500.0,0.00028,120]
[338138098,1726294023261,500.0,0.00028,120]
[338138099,1726294025071,500.0,0.00028,120]
[338138100,1726294025682,509.28525534,0.00028,120]
[338138101,1726294029668,500.0,0.00028,120]
[338138102,1726294031836,500.0,0.00028,120]
[338138103,1726294033141,500.0,0.00028,120]
[338138104,1726294035601,411.78367377,0.00028,120]
[338138105,1726294035714,503.68184045,0.00028,120]
[338138106,1726294037575,502.38868248,0.00028,120]
[338138107,1726294039457,500.0,0.00028,120]
[338138108,1726294044538,500.0,0.00028,120]
[338138109,1726294050118,240.50623144,0.00028,120]
[338138110,1726294066153,500.0,0.00028,120]
[338138111,1726294095998,500.0,0.00028,120]
[338138112,1726294102277,504.7352573,0.00028,120]
[338138113,1726294102468,500.0,0.00028,120]
[338138114,1726294114041,500.0,0.00028,120]
[338138115,1726294118393,500.0,0.00028,120]
[338138116,1726294120756,500.0,0.00028,120]
[338138117,1726294123958,500.0,0.00028,120]
[338138118,1726294124339,515.14435528,0.00028,120]
[338138119,1726294126776,513.11091329,0.00028,120]
[338138120,1726294131722,500.0,0.00028,120]
[338138121,1726294132140,511.04441264,0.00028,120]
[338138122,1726294134977,620.32,0.00028,120]
[338138123,1726294137656,584.7863412,0.00028,120]
[338138124,1726294138995,500.0,0.00028,120]
[338138126,1726294146685,500.0,0.00028,120]
[338138127,1726294152648,2816.05,0.00028,120]
[338138128,1726294154091,806.84,0.00028,120]
[338138129,1726294159959,500.0,0.00028,120]
[338138130,1726294166610,500.0,0.00028,120]
[338138131,1726294169835,864.66,0.00028,120]
[338138132,1726294169902,500.0,0.00028,120]
[338138133,1726294173380,500.0,0.00028,120]
[338138134,1726294179236,500.0,0.00028,120]
[338138135,1726294181382,500.0,0.00028,120]
[338138136,1726294189096,500.0,0.00028,120]
[338138137,1726294189137,500.0,0.00028,120]
[338138138,1726294193775,500.0,0.00028,120]
[338138139,1726294195267,500.0,0.00028,120]
[338138142,1726294225080,500.0,0.00028,120]
[338138143,1726294229595,280.92886906,0.00028,120]
[338138167,1726294232301,-594.41412122,0.00013499,2]
[338138168,1726294232311,-171.9918687,0.00013599,2]
[338138169,1726294232322,-264.286446,0.00013699,2]
[338138170,1726294232332,-492.86935126,0.00017931,2]
[338138176,1726294232401,-3010.64744895,0.00017931,2]
[338138179,1726294232413,-3336.86488092,0.00017931,2]
[338138181,1726294232423,-300.0,0.00018191,2]
[338138183,1726294232433,-760.79417719,0.00018213,2]
[338138196,1726294236423,500.0,0.00028,120]
[338138230,1726294240359,-502.31584,0.00018213,2]
[338138232,1726294240376,-685.690926,0.00018213,2]
[338138233,1726294240389,-4891.58073794,0.00018213,2]
[338138234,1726294240398,-6840.38168113,0.00018583,2]
[338138235,1726294240408,-6840.38168113,0.00018884,2]
[338138236,1726294240417,-150.0,0.00019,2]
[338138237,1726294240427,-6840.38168113,0.0001914,2]
[338138238,1726294240436,-223.287069,0.00019178,2]
[338138239,1726294240446,-3382.927163,0.00019383,2]
[338138240,1726294240465,-3457.45451813,0.00019383,2]
[338138242,1726294240475,-6840.38168113,0.00019555,2]
[338138244,1726294240485,-579.6334837,0.00019637,2]
[338138246,1726294240494,-516.94961933,0.00019638,2]
[338138252,1726294241637,500.0,0.00028,120]
[338138260,1726294243431,-10608.82583568,0.00019638,2]
[338138261,1726294243444,-3982.08754146,0.00019638,2]
[338138293,1726294246503,-2383.69802957,0.00019638,2]
[338138410,1726294247711,500.0,0.00028,120]
[338138468,1726294258970,179.28,0.00028,120]
[338138469,1726294261826,500.0,0.00028,120]
[338138470,1726294265203,508.36275218,0.00028,120]
[338138471,1726294268126,500.0,0.00028,120]
[338138473,1726294270631,500.0,0.00028,120]
[338138474,1726294281695,500.0,0.00028,120]
[338138475,1726294284001,500.0,0.00028,120]
[338138477,1726294292792,500.0,0.00028,120]
[338138478,1726294294605,500.0,0.00028,120]
[338138479,1726294303450,500.0,0.00028,120]
[338138480,1726294303825,500.0,0.00028,120]
[338138481,1726294303951,500.0,0.00028,120]
[338138483,1726294318350,310.74914165,0.00028,120]
[338138484,1726294318984,500.22,0.00028,120]
[338138485,1726294325280,500.0,0.00028,120]
[338138488,1726294343636,500.0,0.00028,120]
[338138489,1726294347342,500.0,0.00028,120]
[338138490,1726294348268,500.0,0.00028,120]
[338138491,1726294348705,500.0,0.00028,120]
[338138493,1726294351913,500.0,0.00028,120]
[338138494,1726294361131,500.0,0.00028,120]
[338138495,1726294363294,500.0,0.00028,120]
[338138496,1726294370082,2451.27,0.00028,120]
[338138497,1726294379416,500.0,0.00028,120]
[338138498,1726294384137,500.0,0.00028,120]
[338138499,1726294388765,500.0,0.00028,120]
[338138500,1726294388844,500.0,0.00028,120]
[338138501,1726294391370,500.0,0.00028,120]
[338138502,1726294395226,500.0,0.00028,120]
[338138503,1726294395770,500.0,0.00028,120]
[338138504,1726294396675,500.0,0.00028,120]
[338138505,1726294404011,773.23,0.00028,120]
[338138506,1726294408582,2698.71,0.00028,120]
[338138507,1726294417403,828.63,0.00028,120]
[338138508,1726294426735,500.0,0.00028,120]
[338138509,1726294427245,500.0,0.00028,120]
[338138510,1726294428419,500.0,0.00028,120]
[338138511,1726294430412,500.0,0.00028,120]
[338138512,1726294441067,601.79,0.00028,120]
[338138513,1726294443101,500.0,0.00028,120]
[338138514,1726294455745,218.24002577,0.00028,120]
[338138515,1726294464958,500.0,0.00028,120]
[338138516,1726294472311,500.0,0.00028,120]
[338138517,1726294476798,500.0,0.00028,120]
[338138518,1726294481622,500.0,0.00028,120]
[338138519,1726294484261,408.48712315,0.00028,120]
[338138520,1726294486280,500.0,0.00028,120]
[338138521,1726294489378,543.26,0.00028,120]
[338138522,1726294492404,500.0,0.00028,120]
[338138523,1726294501475,500.0,0.00028,120]
[338138524,1726294505932,500.0,0.00028,120]
[338138527,1726294526836,500.0,0.00028,120]
[338138528,1726294528890,500.0,0.00028,120]
[338138529,1726294530009,500.0,0.00028,120]
[338138530,1726294540856,500.0,0.00028,120]
[338138531,1726294542924,500.0,0.00028,120]
[338138532,1726294549065,500.0,0.00028,120]
[338138533,1726294551684,581.29,0.00028,120]
[338138534,1726294557159,500.0,0.00028,120]
[338138535,1726294558097,500.0,0.00028,120]
[338138536,1726294559557,500.0,0.00028,120]
[338138537,1726294559811,500.0,0.00028,120]
[338138538,1726294563656,500.0,0.00028,120]
[338138539,1726294567363,500.0,0.00028,120]
[338138540,1726294574466,500.0,0.00028,120]
[338138541,1726294575017,500.0,0.00028,120]
[338138542,1726294575941,500.0,0.00028,120]
[338138543,1726294579853,589.91,0.00028,120]
[338138544,1726294582515,500.0,0.00028,120]
[338138545,1726294585691,500.0,0.00028,120]
[338138546,1726294592626,277.66975681,0.00028,120]
[338138547,1726294593418,287.11439826,0.00028,120]
[338138548,1726294598311,500.0,0.00028,120]
[338138549,1726294599997,500.0,0.00028,120]
[338138550,1726294606372,235.2,0.00028,120]
[338138551,1726294611840,436.60903136,0.00028,120]
[338138552,1726294613802,500.0,0.00028,120]
[338138553,1726294621010,500.0,0.00028,120]
[338138554,1726294624848,500.0,0.00028,120]
[338138555,1726294631220,500.0,0.00028,120]
[338138556,1726294631657,500.0,0.00028,120]
[338138557,1726294640262,2586.26,0.00028,120]
[338138558,1726294641188,500.0,0.00028,120]
[338138559,1726294645273,794.11,0.00028,120]
[338138560,1726294645638,500.0,0.00028,120]
[338138561,1726294650997,500.0,0.00028,120]
[338138562,1726294651847,500.0,0.00028,120]
[338138563,1726294658901,500.0,0.00028,120]
[338138564,1726294659487,741.01,0.00028,120]
[338138565,1726294663325,500.0,0.00028,120]
[338138566,1726294682427,500.0,0.00028,120]
[338138567,1726294694449,6247.0,8.02e-05,2]
[338138568,1726294699124,500.0,0.00028,120]
[338138569,1726294701777,500.0,0.00028,120]
[338138570,1726294704049,500.0,0.00028,120]
[338138571,1726294712442,500.0,0.00028,120]
[338138572,1726294725605,500.0,0.00028,120]
[338138573,1726294730364,500.0,0.00028,120]
[338138574,1726294731976,500.0,0.00028,120]
[338138575,1726294732321,592.33803114,0.00028,120]
[338138576,1726294732587,500.0,0.00028,120]
[338138577,1726294734223,500.0,0.00028,120]
[338138579,1726294744871,500.0,0.00028,120]
[338138580,1726294747477,171.37140991,0.00028,120]
[338138581,1726294752716,500.0,0.00028,120]
[338138582,1726294758396,500.0,0.00028,120]
[338138583,1726294772809,500.0,0.00028,120]
[338138584,1726294779157,500.0,0.00028,120]
[338138585,1726294786188,500.0,0.00028,120]
[338138587,1726294801581,500.0,0.00028,120]
[338138588,1726294810068,500.0,0.00028,120]
[338138589,1726294812609,500.0,0.00028,120]
[338138590,1726294815836,500.0,0.00028,120]
[338138591,1726294819532,458.16474378,0.00028,120]
[338138605,1726294833687,500.0,0.00028,120]
[338138609,1726294858670,2478.5,0.00028,120]
[338138610,1726294861278,500.0,0.00028,120]
[338138611,1726294866705,500.0,0.00028,120]
[338138612,1726294867759,500.0,0.00028,120]
[338138613,1726294872925,500.0,0.00028,120]
[338138614,1726294879448,500.0,0.00028,120]
[338138615,1726294879871,500.0,0.00028,120]
[338138616,1726294884612,500.0,0.00028,120]
[338138617,1726294885379,761.02,0.00028,120]
[338138618,1726294886588,710.13,0.00028,120]
[338138619,1726294898739,500.0,0.00028,120]
[338138620,1726294925022,500.0,0.00028,120]
[338138621,1726294948955,500.0,0.00028,120]
[338138622,1726294948997,500.0,0.00028,120]
[338138623,1726294951572,500.0,0.00028,120]
[338138624,1726294963377,500.0,0.00028,120]
[338138625,1726294969149,500.0,0.00028,120]
[338138626,1726294978511,500.0,0.00028,120]
[338138627,1726294981295,2349.14,0.00028,120]
[338138628,1726294981798,500.0,0.00028,120]
[338138629,1726294995927,278.10533763,0.00028,120]
[338138630,1726295034530,500.0,0.00028,120]
[338138631,1726295034913,2000.0,0.00026,60]
[338138632,1726295038422,500.0,0.00028,120]
[338138633,1726295045694,500.0,0.00028,120]
[338138634,1726295050299,500.0,0.00028,120]
[338138635,1726295061689,500.0,0.00028,120]
[338138636,1726295067808,502.6161748,0.00028,120]
[338138637,1726295070474,500.0,0.00028,120]
[338138638,1726295078581,500.0,0.00028,120]
[338138639,1726295084855,500.0,0.00028,120]
[338138640,1726295094772,2375.23,0.00028,120]
[338138641,1726295097630,257.24653883,0.00028,120]
[338138642,1726295103275,500.0,0.00028,120]
[338138643,1726295108633,680.54,0.00028,120]
[338138644,1726295117986,500.0,0.00028,120]
[338138645,1726295120339,729.31,0.00028,120]
[338138646,1726295124106,500.0,0.00028,120]
[338138647,1726295133151,500.0,0.00028,120]
[338138648,1726295150801,500.0,0.00028,120]
[338138649,1726295154562,500.0,0.00028,120]
[338138650,1726295160689,424.92,0.00028,120]
[338138651,1726295168603,500.0,0.00028,120]
[338138653,1726295207782,500.0,0.00028,120]
[338138654,1726295208232,500.0,0.00028,120]
[338138655,1726295214953,364.95,0.00028,120]
[338138657,1726295220351,206.19,0.00028,120]
[338138658,1726295222056,500.0,0.00028,120]
[338138659,1726295222194,500.0,0.00028,120]
[338138660,1726295228051,500.0,0.00028,120]
[338138661,1726295228802,500.0,0.00028,120]
[338138662,1726295240279,570.83372622,0.00028,120]
[338138663,1726295241958,182.96,0.00028,120]
[338138664,1726295251024,357.5,0.00028,120]
[338138665,1726295260952,500.0,0.00028,120]
[338138668,1726295269610,455.55,0.00028,120]
[338138669,1726295275259,500.0,0.00028,120]
[338138670,1726295285110,500.0,0.00028,120]
[338138672,1726295299945,500.0,0.00028,120]
[338138673,1726295301997,500.0,0.00028,120]
[338138674,1726295303286,500.0,0.00028,120]
[338138675,1726295306513,500.0,0.00028,120]
[338138676,1726295309348,500.0,0.00028,120]
[338138679,1726295319278,500.0,0.00028,120]
[338138682,1726295331477,2276.26,0.00028,120]
[338138685,1726295336985,500.0,0.00028,120]
[338138686,1726295343385,652.19,0.00028,120]
[338138690,1726295359684,512.86,0.00028,120]
[338138691,1726295361424,500.0,0.00028,120]
[338138692,1726295367488,376.1,0.00028,120]
[338138693,1726295375237,698.92,0.00028,120]
[338138695,1726295378823,500.0,0.00028,120]
[338138696,1726295384519,500.0,0.00028,120]
[338138701,1726295416133,500.0,0.00028,120]
[338138702,1726295423939,500.0,0.00028,120]
[338138754,1726295438819,-251.072123,0.00013699,2]
[338138755,1726295438832,-593.57278121,0.00017188,2]
[338138756,1726295438844,-6742.62728579,0.00017288,2]
[338138762,1726295440596,-277.02017281,0.00017288,2]
[338138763,1726295440607,-300.0,0.00017756,2]
[338138764,1726295440616,-7019.6474586,0.00017757,2]
[338138765,1726295440626,-7019.6474586,0.00017951,2]
[338138766,1726295440636,-150.0,0.00018187,2]
[338138767,1726295440647,-7019.6474586,0.00018209,2]
[338138768,1726295440660,-903.6984407,0.00018325,2]
[338138769,1726295440671,-11575.6312276,0.00018326,2]
[338138770,1726295440683,-151.0,0.00018377,2]
[338138771,1726295440693,-151.0,0.00018377,2]
[338138772,1726295440705,-151.0,0.00018377,2]
[338138773,1726295440717,-151.0,0.00018377,2]
[338138774,1726295440727,-151.0,0.00018377,2]
[338138775,1726295440736,-150.0,0.0001838,2]
[338138776,1726295440746,-6346.62048824,0.00018485,2]
[338138777,1726295440793,511.65528565,0.00028,120]
[338138779,1726295443506,-673.02697036,0.00018485,2]
[338138780,1726295443515,-7019.6474586,0.00018668,2]
[338138781,1726295443526,-151.0,0.00018668,2]
[338138782,1726295443537,-150.0,0.00018755,2]
[338138783,1726295443547,-266.291568,0.00018962,2]
[338138784,1726295443559,-266.291568,0.00018962,2]
[338138785,1726295443569,-151.0,0.00018962,2]
[338138786,1726295443578,-151.0,0.00018962,2]
[338138787,1726295443588,-151.0,0.00018962,2]
[338138788,1726295443598,-154.972171,0.00018962,2]
[338138789,1726295443609,-150.0,0.00019,2]
[338138791,1726295443618,-152.241122,0.00019018,2]
[338138793,1726295443628,-151.0,0.00019018,2]
[338138794,1726295443638,-151.0,0.00019018,2]
[338138795,1726295443648,-151.0,0.00019018,2]
[338138796,1726295443658,-154.03398273,0.00019064,2]
[338138797,1726295443668,-7019.6474586,0.00019112,2]
[338138798,1726295443678,-224.6945883,0.00019178,2]
[338138799,1726295443688,-151.0,0.00019178,2]
[338138800,1726295443699,-2731.95524009,0.0001923,2]
[338138801,1726295443713,-4287.69221856,0.0001923,2]
[338138802,1726295443723,-151.0,0.0001923,2]
[338138803,1726295443734,-240.0,0.00019532,2]
[338138804,1726295443744,-569.509441,0.00019854,2]
[338138805,1726295443756,-569.509441,0.00019854,2]
[338138806,1726295443767,-151.0,0.00019854,2]
[338138807,1726295443777,-151.0,0.00019854,2]
[338138808,1726295443786,-251.072123,0.00020187,2]
[338138809,1726295443796,-151.0,0.00020385,2]
[338138810,1726295443807,-151.0,0.00020385,2]
[338138811,1726295443816,-151.0,0.00020385,2]
[338138812,1726295443827,-151.0,0.00020566,2]
[338138813,1726295443836,-151.0,0.00020566,2]
[338138814,1726295443846,-1966.52471399,0.00021,4]
[338138815,1726295443860,-37.73878089,0.00021,4]
[338138816,1726295443870,-151.0,0.00021,2]
[338138817,1726295443879,-151.0,0.00021,2]
[338138818,1726295443891,-151.0,0.00021,2]
[338138819,1726295443902,-131.07693166,0.00021,2]
[338138820,1726295443916,-19.92306834,0.00021,2]
[338138821,1726295443926,-151.0,0.00021,2]
[338138822,1726295443936,-151.0,0.00021,2]
[338138823,1726295443946,-151.0,0.00021,2]
[338138824,1726295443957,-151.0,0.00021,2]
[338138825,1726295443968,-151.0,0.00021,2]
[338138826,1726295443978,-266.291568,0.00021,2]
[338138827,1726295443987,-266.291568,0.00021,2]
[338138828,1726295443998,-151.0,0.00021,2]
[338138829,1726295444008,-161.84294,0.00021,2]
[338138830,1726295444020,-152.781842,0.00021,2]
[338138831,1726295444031,-154.482858,0.00021,2]
[338138832,1726295444041,-151.0,0.00021,2]
[338138833,1726295444050,-151.0,0.00021,2]
[338138834,1726295444060,-151.0,0.00021232,2]
[338138835,1726295444070,-151.0,0.00021232,2]
[338138836,1726295444081,-151.0,0.00021232,2]
[338138837,1726295444092,-151.0,0.00021232,2]
[338138838,1726295444102,-152.093818,0.00021373,2]
[338138839,1726295444114,-151.356631,0.00021373,2]
[338138840,1726295444124,-151.0,0.00021373,2]
[338138842,1726295444134,-151.0,0.00021373,2]
[338138843,1726295444144,-151.0,0.00021373,2]
[338138844,1726295444154,-151.0,0.00021373,2]
[338138845,1726295444168,-151.0,0.00021373,2]
[338138846,1726295444178,-151.0,0.00021373,2]
[338138847,1726295444189,-151.0,0.00021638,2]
[338138848,1726295444199,-151.0,0.00021749,2]
[338138849,1726295444210,-151.0,0.00021749,2]
[338138850,1726295444220,-151.0,0.00021749,2]
[338138851,1726295444230,-153.787468,0.00021773,2]
[338138852,1726295444240,-151.0,0.00021773,2]
[338138853,1726295444250,-151.0,0.00021773,2]
[338138854,1726295444260,-167.72610514,0.00021872,2]
[338138855,1726295444269,-1000.0,0.00021873,2]
[338138856,1726295444279,-287.99537391,0.00021873,2]
[338138857,1726295444289,-285.99,0.000219,7]
[338138858,1726295444299,-175.18784,0.000219,2]
[338138859,1726295444309,-482.91707533,0.00021902,2]
[338138860,1726295444322,-86.59236567,0.00021902,2]
[338138861,1726295444333,-569.509441,0.00021902,2]
[338138862,1726295444342,-151.0,0.00021902,2]
[338138863,1726295444352,-151.0,0.00021902,2]
[338138864,1726295444362,-166.666666,0.00021918,2]
[338138865,1726295444372,-151.0,0.00021952,7]
[338138866,1726295444390,-313.06,0.00021952,3]
[338138867,1726295444401,-2839.41055615,0.00021962,3]
[338138873,1726295461662,500.0,0.00028,120]
[338138874,1726295466587,500.0,0.00028,120]
[338138875,1726295468804,500.0,0.00028,120]
[338138876,1726295481366,500.0,0.00028,120]
[338138877,1726295483492,500.0,0.00028,120]
[338138878,1726295484105,500.0,0.00028,120]
[338138879,1726295486742,613.12,0.00028,120]
[338138880,1726295491273,500.0,0.00028,120]
[338138881,1726295495432,500.0,0.00028,120]
[338138882,1726295495695,500.0,0.00028,120]
[338138883,1726295495956,500.0,0.00028,120]
[338138884,1726295496219,500.0,0.00028,120]
[338138885,1726295496466,500.0,0.00028,120]
[338138886,1726295498438,500.0,0.00028,120]
[338138887,1726295503692,500.0,0.00028,120]
[338138888,1726295505611,500.0,0.00028,120]
[338138889,1726295507699,500.0,0.00028,120]
[338138890,1726295524291,500.0,0.00028,120]
[338138891,1726295526252,500.0,0.00028,120]
[338138892,1726295540063,500.0,0.00028,120]
[338138893,1726295540409,500.0,0.00028,120]
[338138894,1726295544374,500.0,0.00028,120]
[338138895,1726295545706,500.0,0.00028,120]
[338138896,1726295550951,502.22455103,0.00028,120]
[338138897,1726295557519,500.0,0.00028,120]
[338138898,1726295559600,293.27268577,0.00028,120]
[338138899,1726295565120,500.0,0.00028,120]
[338138900,1726295567026,207.25630743,0.00028,120]
[338138901,1726295571092,500.0,0.00028,120]
[338138902,1726295573146,583.66990626,0.00028,120]
[338138903,1726295575356,500.0,0.00028,120]
[338138904,1726295577751,500.0,0.00028,120]
[338138905,1726295580418,500.0,0.00028,120]
[338138906,1726295582046,2181.42,0.00028,120]
[338138907,1726295582601,500.0,0.00028,120]
[338138908,1726295583702,2251.26,0.00028,120]
[338138909,1726295584573,500.0,0.00028,120]
[338138910,1726295588171,500.0,0.00028,120]
[338138911,1726295590101,500.0,0.00028,120]
[338138912,1726295592725,500.0,0.00028,120]
[338138913,1726295594829,500.0,0.00028,120]
[338138914,1726295599635,316.03081366,0.00028,120]
[338138915,1726295601655,500.0,0.00028,120]
[338138916,1726295603341,500.0,0.00028,120]
[338138917,1726295603614,500.0,0.00028,120]
[338138918,1726295605156,500.0,0.00028,120]
[338138919,1726295607042,500.0,0.00028,120]
[338138920,1726295607306,509.30964056,0.00028,120]
[338138921,1726295611663,669.8,0.00028,120]
[338138922,1726295614705,500.0,0.00028,120]
[338138923,1726295618539,500.0,0.00028,120]
[338138924,1726295620628,500.0,0.00028,120]
[338138925,1726295621014,500.0,0.00028,120]
[338138926,1726295621665,500.0,0.00028,120]
[338138927,1726295622621,500.0,0.00028,120]
[338138928,1726295623032,500.0,0.00028,120]
[338138929,1726295623737,500.0,0.00028,120]
[338138931,1726295626445,500.0,0.00028,120]
[338138932,1726295628248,500.0,0.00028,120]
[338138933,1726295628532,500.0,0.00028,120]
[338138934,1726295628967,500.0,0.00028,120]
[338138935,1726295630474,500.0,0.00028,120]
[338138936,1726295635804,500.0,0.00028,120]
[338138937,1726295636349,500.0,0.00028,120]
[338138938,1726295637788,500.0,0.00028,120]
[338138939,1726295638977,500.0,0.00028,120]
[338138940,1726295640426,500.0,0.00028,120]